bitfinex/quotes_BTCUSD_20220304
["timestamp","ask_amount","ask_price","bid_price","bid_amount"]
[1646400554499,0.32409,41559.0,41553.0,0.07099661]
[1646400554700,0.21222045,41556.0,41553.0,0.07099661]
[1646400555099,0.26222045,41556.0,41553.0,0.07099661]
[1646400556500,0.05,41556.0,41553.0,0.07099661]
[1646400556700,0.01118705,41557.0,41553.0,0.07099661]
[1646400557345,0.01118705,41557.0,41553.0,0.26814405]
[1646400557546,0.01118705,41557.0,41554.0,0.41172932]
[1646400557746,0.01118705,41557.0,41556.0,0.18048614]
[1646400557949,0.01118705,41557.0,41556.0,0.19714744]
[1646400558147,0.005,41561.0,41555.0,0.24588089]
[1646400558148,0.01055832,41556.0,41555.0,0.24588089]
[1646400558346,0.3,41568.0,41556.0,0.01094993]
[1646400558544,1.03101083,41571.0,41557.0,0.19729297]
[1646400558749,0.57541118,41569.0,41563.0,0.2689303]
[1646400558946,0.31344994,41568.0,41557.0,0.35475585]
[1646400559148,0.01068437,41567.0,41557.0,0.19729297]
[1646400559346,0.01068437,41567.0,41556.0,0.01094993]
[1646400559647,0.75979,41566.0,41556.0,0.01094993]
[1646400559848,1.05979,41565.0,41556.0,0.01094993]
[1646400560151,0.61464656,41558.0,41556.0,0.01094993]
[1646400560348,0.3,41557.0,41556.0,0.01094993]
[1646400560602,0.35,41557.0,41556.0,0.01094993]
[1646400561407,0.59548821,41557.0,41556.0,0.01094993]
[1646400562005,0.59548821,41557.0,41549.0,0.17923951]
[1646400562405,0.59548821,41557.0,41548.0,0.26070344]
[1646400563206,0.35,41557.0,41548.0,0.26070344]
[1646400563608,0.05,41557.0,41548.0,0.26070344]
[1646400563808,0.01210374,41557.0,41548.0,0.50658433]
[1646400564013,0.01210374,41557.0,41550.0,0.24588089]
[1646400564213,0.01210374,41557.0,41551.0,0.15]
[1646400564450,0.01210374,41557.0,41552.0,0.26246051]
[1646400564648,0.01092548,41556.0,41553.0,0.24588089]
[1646400564851,0.01452709,41555.0,41553.0,0.39588089]
[1646400565054,0.59531083,41569.0,41553.0,0.39588089]
[1646400565250,0.32215041,41563.0,41553.0,0.39588089]
[1646400565452,0.01396315,41563.0,41558.0,0.15]
[1646400565651,0.01066911,41562.0,41559.0,0.01323775]
[1646400565849,0.29531083,41572.0,41560.0,0.21632477]
[1646400565850,0.31014462,41571.0,41560.0,0.21632477]
[1646400566050,0.29531083,41572.0,41560.0,0.21632477]
[1646400566051,0.01353176,41570.0,41560.0,0.21632477]
[1646400566249,0.29531083,41572.0,41560.0,0.21632477]
[1646400566250,0.01122387,41569.0,41560.0,0.21632477]
[1646400566451,0.3034356,41568.0,41559.0,0.01323775]
[1646400566655,0.53500776,41567.0,41559.0,0.01323775]
[1646400566854,0.30068131,41561.0,41559.0,0.003]
[1646400567053,0.06145269,41560.0,41559.0,0.003]
[1646400567452,0.42865869,41560.0,41559.0,0.003]
[1646400567653,0.06145269,41560.0,41559.0,0.003]
[1646400568102,0.32390383,41560.0,41551.0,0.28842112]
[1646400568302,0.32390383,41560.0,41548.0,0.24588089]
[1646400568506,0.32390383,41560.0,41550.0,0.15]
[1646400568705,0.32390383,41560.0,41550.0,0.36770249]
[1646400569309,0.32390383,41560.0,41554.0,0.25460586]
[1646400569504,0.06145269,41560.0,41554.0,0.25460586]
[1646400570705,0.06145269,41560.0,41548.0,0.24588089]
[1646400570906,0.25592727,41554.0,41548.0,0.24588089]
[1646400571107,0.42865869,41560.0,41559.0,0.27064918]
[1646400571307,0.67472754,41560.0,41559.0,0.27064918]
[1646400571707,0.5614673,41560.0,41559.0,0.27064918]
[1646400571971,0.42865869,41560.0,41559.0,0.27064918]
[1646400572172,0.6774285,41560.0,41559.0,0.27064918]
[1646400572367,0.3102225,41560.0,41559.0,0.27064918]
[1646400572566,0.6774285,41560.0,41559.0,0.27064918]
[1646400572766,0.55629135,41560.0,41559.0,0.27064918]
[1646400573366,0.79682803,41560.0,41559.0,0.27064918]
[1646400573567,0.55629135,41560.0,41559.0,0.27064918]
[1646400574771,0.3102225,41560.0,41559.0,0.27064918]
[1646400575072,0.06145269,41560.0,41559.0,0.27064918]
[1646400575271,0.01145269,41560.0,41559.0,0.27064918]
[1646400575706,0.20825639,41560.0,41559.0,0.27064918]
[1646400576110,0.1968037,41560.0,41559.0,0.27064918]
[1646400576807,0.19680224,41560.0,41559.0,0.27064918]
[1646400578006,0.19680224,41560.0,41559.0,0.2703415]
[1646400578706,0.29534137,41561.0,41559.0,0.2703415]
[1646400579756,0.19679577,41560.0,41559.0,0.2703415]
[1646400580755,0.05,41562.0,41559.0,0.2703415]
[1646400580756,0.24679577,41562.0,41559.0,0.2703415]
[1646400580959,0.0036118,41560.0,41559.0,0.2703415]
[1646400581156,0.05,41562.0,41559.0,0.2703415]
[1646400581360,0.24679577,41563.0,41559.0,0.2703415]
[1646400582559,0.05,41563.0,41559.0,0.2703415]
[1646400582758,0.19679577,41563.0,41559.0,0.2703415]
[1646400582960,0.05,41564.0,41562.0,0.24856319]
[1646400582961,0.24679577,41564.0,41562.0,0.24856319]
[1646400583217,0.19679577,41565.0,41559.0,0.2703415]
[1646400583418,0.47502207,41564.0,41559.0,0.2703415]
[1646400584218,0.19679577,41563.0,41559.0,0.2703415]
[1646400584419,0.19679577,41562.0,41559.0,0.2703415]
[1646400584821,0.367206,41561.0,41559.0,0.2703415]
[1646400585025,0.61327485,41560.0,41559.0,0.2703415]
[1646400585219,0.367206,41560.0,41559.0,0.2703415]
[1646400585419,0.64219791,41560.0,41559.0,0.2703415]
[1646400586021,0.27499191,41560.0,41559.0,0.2703415]
[1646400586421,0.52109018,41560.0,41559.0,0.2703415]
[1646400586858,0.34531083,41562.0,41559.0,0.2703415]
[1646400586859,0.24609827,41561.0,41559.0,0.2703415]
[1646400587053,0.56409345,41560.0,41559.0,0.2703415]
[1646400587252,0.24609827,41561.0,41559.0,0.2703415]
[1646400587953,0.26517313,41560.0,41559.0,0.2703415]
[1646400589253,0.24609827,41561.0,41559.0,0.2703415]
[1646400589453,0.24678005,41562.0,41559.0,0.2703415]
[1646400589653,0.19678005,41561.0,41559.0,0.2703415]
[1646400589855,0.19678005,41560.0,41559.0,0.2703415]
[1646400590055,0.05,41561.0,41559.0,0.2703415]
[1646400590260,0.19678005,41561.0,41559.0,0.2703415]
[1646400590609,0.24678005,41562.0,41559.0,0.2703415]
[1646400590806,0.05,41562.0,41559.0,0.2703415]
[1646400591006,0.19678005,41563.0,41559.0,0.2703415]
[1646400591407,0.19678005,41563.0,41559.0,0.2653415]
[1646400591807,0.47500635,41564.0,41559.0,0.2653415]
[1646400592009,0.19678005,41563.0,41559.0,0.2653415]
[1646400592608,0.52500635,41564.0,41559.0,0.2653415]
[1646400593409,0.25301608,41561.0,41559.0,0.2653415]
[1646400593809,0.417206,41560.0,41559.0,0.2653415]
[1646400594110,0.05,41560.0,41559.0,0.2653415]
[1646400596373,0.24678005,41562.0,41559.0,0.2653415]
[1646400597772,0.19678005,41561.0,41559.0,0.2653415]
[1646400597976,0.24678005,41562.0,41559.0,0.2653415]
[1646400598228,0.19678005,41561.0,41559.0,0.2653415]
[1646400599122,0.24678005,41562.0,41559.0,0.2653415]
[1646400600126,0.05,41562.0,41559.0,0.2653415]
[1646400600724,0.24678005,41563.0,41559.0,0.2653415]
[1646400600926,0.05,41563.0,41559.0,0.2653415]
[1646400601323,0.2782263,41564.0,41559.0,0.2653415]
[1646400601324,0.05,41564.0,41559.0,0.2653415]
[1646400601725,0.24609827,41569.0,41559.0,0.2653415]
[1646400602167,0.05,41574.0,41560.0,0.32409]
[1646400602366,0.001,41581.0,41571.0,0.15]
[1646400602367,0.24584069,41576.0,41571.0,0.15]
[1646400602567,0.34526426,41587.0,41575.0,0.03977552]
[1646400602766,0.001,41587.0,41586.0,0.15]
[1646400602966,0.0021,41590.0,41586.0,0.45]
[1646400603169,0.0021,41590.0,41587.0,0.41156102]
[1646400603566,0.0021,41590.0,41588.0,0.4140446]
[1646400603775,0.0021,41590.0,41589.0,0.3482]
[1646400603968,0.0021,41599.0,41591.0,1.4]
[1646400604170,0.0043,41604.0,41601.0,0.18971457]
[1646400604171,0.0003,41604.0,41601.0,0.18971457]
[1646400604368,0.0003,41604.0,41603.0,0.15]
[1646400604576,0.4108,41615.0,41606.0,0.25]
[1646400604577,0.0011,41615.0,41606.0,0.25]
[1646400604773,0.17347275,41618.0,41613.0,0.2]
[1646400604970,0.29364511,41638.0,41617.0,0.15]
[1646400605170,0.05,41634.0,41621.0,0.1489]
[1646400605370,0.01,41639.0,41629.0,0.16586986]
[1646400605605,0.01,41639.0,41630.0,0.3]
[1646400605807,0.01,41639.0,41632.0,0.1489]
[1646400606006,0.01,41639.0,41634.0,0.42539894]
[1646400606203,0.01,41643.0,41635.0,1.40118]
[1646400606406,0.0103301,41661.0,41641.0,0.1489]
[1646400606606,0.02908632,41667.0,41650.0,0.1489]
[1646400606807,0.02908632,41667.0,41656.0,0.1489]
[1646400607005,0.02908632,41667.0,41656.0,0.0482]
[1646400607212,0.27087739,41659.0,41656.0,0.36948314]
[1646400607403,0.0245225,41657.0,41656.0,0.0482]
[1646400607602,0.30595976,41667.0,41656.0,0.3982]
[1646400607803,0.02908632,41667.0,41656.0,0.0482]
[1646400608003,0.02408632,41667.0,41656.0,0.1961]
[1646400608205,0.02408632,41667.0,41656.0,0.0982]
[1646400608410,0.01,41673.0,41664.0,0.16902221]
[1646400608605,0.01,41673.0,41672.0,0.1468]
[1646400608803,0.01,41673.0,41672.0,0.74944472]
[1646400609004,0.02865014,41678.0,41673.0,1.4]
[1646400609206,0.05,41687.0,41676.0,0.1468]
[1646400609481,0.03777778,41699.0,41686.0,0.21710307]
[1646400609682,0.05684501,41702.0,41682.0,1.4]
[1646400609683,0.04683196,41702.0,41698.0,0.1468]
[1646400609883,0.04683196,41702.0,41699.0,0.3482]
[1646400609884,5.17915435,41700.0,41699.0,0.3482]
[1646400610183,0.0284416,41710.0,41701.0,1.4]
[1646400610380,0.0229798,41715.0,41703.0,2.0026]
[1646400610577,0.05508724,41729.0,41703.0,2.0026]
[1646400610578,0.05508724,41729.0,41715.0,0.14581696]
[1646400610785,0.05508724,41729.0,41716.0,0.0482]
[1646400610984,0.29942821,41717.0,41716.0,0.04689019]
[1646400611179,0.05508724,41729.0,41716.0,0.34689019]
[1646400611405,0.05508724,41729.0,41717.0,0.3482]
[1646400611587,0.07024794,41742.0,41720.0,0.13301515]
[1646400611588,0.59272057,41741.0,41720.0,0.13301515]
[1646400611807,0.29272057,41741.0,41730.0,0.00839715]
[1646400611988,0.29272057,41741.0,41725.0,0.6026]
[1646400611989,0.29272057,41741.0,41740.0,0.00839715]
[1646400612183,0.02559688,41753.0,41740.0,0.00839715]
[1646400612184,0.16692754,41767.0,41740.0,0.20315641]
[1646400612380,0.05,41755.0,41743.0,0.7526]
[1646400612581,4.31755268,41769.0,41746.0,0.39470615]
[1646400612582,0.16968421,41758.0,41746.0,0.39470615]
[1646400612782,0.0011,41765.0,41750.0,0.15]
[1646400612783,0.3,41763.0,41750.0,0.15]
[1646400612981,0.0011,41765.0,41751.0,0.06511564]
[1646400613216,0.24658304,41753.0,41752.0,0.0482]
[1646400613418,0.0011,41765.0,41752.0,0.0482]
[1646400613419,0.0011,41765.0,41753.0,0.01459426]
[1646400613625,0.19043221,41764.0,41754.0,0.0482]
[1646400613823,0.19043221,41764.0,41753.0,0.01459426]
[1646400614018,0.19153221,41764.0,41754.0,0.0482]
[1646400614219,0.03404481,41758.0,41754.0,0.04621828]
[1646400614421,0.03404481,41758.0,41755.0,0.0482]
[1646400614619,1.4,41757.0,41747.0,0.01457801]
[1646400614820,0.19153221,41764.0,41742.0,1.4]
[1646400614821,3.03117217,41764.0,41742.0,1.4]
[1646400615021,0.0011,41764.0,41752.0,0.004]
[1646400615220,0.15,41763.0,41743.0,0.1]
[1646400615420,0.15,41763.0,41735.0,0.2499]
[1646400615421,0.29514786,41741.0,41735.0,0.2499]
[1646400615621,0.3,41756.0,41732.0,0.1]
[1646400615817,0.01527072,41754.0,41725.0,0.26409159]
[1646400616018,0.01527072,41754.0,41732.0,0.2499]
[1646400616225,0.01447344,41749.0,41732.0,0.2499]
[1646400616422,0.15,41740.0,41716.0,0.00568582]
[1646400616621,0.15,41731.0,41716.0,0.00568582]
[1646400616865,0.0124301,41738.0,41694.0,0.2]
[1646400616866,0.21805391,41714.0,41694.0,0.2]
[1646400617067,0.31044956,41713.0,41686.0,0.26902293]
[1646400617267,0.01172017,41712.0,41687.0,0.0482]
[1646400617669,0.01172017,41712.0,41693.0,0.15]
[1646400617867,0.01172017,41712.0,41694.0,0.3482]
[1646400618069,0.31172017,41712.0,41693.0,0.1972]
[1646400618268,0.36172017,41712.0,41693.0,0.1972]
[1646400618467,0.18781744,41715.0,41693.0,0.1972]
[1646400618468,0.15,41708.0,41693.0,0.1972]
[1646400618668,0.16726036,41715.0,41667.0,5.05388111]
[1646400618669,0.15,41701.0,41667.0,5.05388111]
[1646400618879,1.4,41699.0,41664.0,0.2]
[1646400619071,0.26988604,41686.0,41658.0,0.15]
[1646400619268,0.26988604,41686.0,41657.0,0.02409]
[1646400619269,0.70523024,41685.0,41663.0,1.92948477]
[1646400619467,0.27583641,41671.0,41663.0,1.92948477]
[1646400619669,0.15,41681.0,41663.0,1.92948477]
[1646400619871,0.3441,41680.0,41651.0,0.01]
[1646400620070,0.15,41671.0,41651.0,0.01]
[1646400620270,0.15,41668.0,41651.0,0.01]
[1646400620472,0.15,41662.0,41651.0,0.01]
[1646400620710,0.5517,41659.0,41642.0,0.01]
[1646400620906,0.3441,41658.0,41642.0,0.01]
[1646400621112,0.05,41651.0,41647.0,0.003]
[1646400621306,0.05,41651.0,41642.0,0.01]
[1646400621307,1.05,41649.0,41642.0,0.01]
[1646400621519,0.55557546,41648.0,41642.0,0.01]
[1646400621706,0.0441,41648.0,41623.0,0.38961527]
[1646400621909,0.0441,41648.0,41625.0,0.1662628]
[1646400621910,0.01438729,41638.0,41625.0,0.1662628]
[1646400622106,0.05,41639.0,41638.0,0.00979329]
[1646400622512,0.3941,41639.0,41638.0,0.00979329]
[1646400622708,0.3941,41639.0,41623.0,0.38961527]
[1646400622709,0.75979,41637.0,41623.0,0.38961527]
[1646400622912,0.75979,41637.0,41623.0,0.33341527]
[1646400622913,0.05,41628.0,41623.0,0.33341527]
[1646400623108,0.0441,41627.0,41623.0,0.33341527]
[1646400623309,0.0441,41627.0,41621.0,0.23416277]
[1646400623511,0.1,41628.0,41622.0,0.31487337]
[1646400623709,0.05,41640.0,41622.0,0.31487337]
[1646400623710,0.05,41640.0,41623.0,0.59627656]
[1646400623910,0.05,41650.0,41632.0,0.01225852]
[1646400624114,0.01,41673.0,41641.0,0.28881716]
[1646400624115,0.41898784,41662.0,41641.0,0.28881716]
[1646400624371,0.42,41648.0,41642.0,0.31691881]
[1646400624566,0.3518,41648.0,41643.0,0.0441]
[1646400624764,0.02075496,41673.0,41643.0,0.0441]
[1646400624765,0.24523053,41671.0,41644.0,0.31114301]
[1646400624965,0.02075496,41673.0,41644.0,0.31114301]
[1646400624966,0.01,41673.0,41651.0,0.15]
[1646400625167,0.05505339,41666.0,41652.0,0.3136143]
[1646400625371,0.01,41673.0,41645.0,0.00568582]
[1646400625372,0.13945173,41654.0,41645.0,0.00568582]
[1646400625575,0.07234397,41651.0,41645.0,0.00568582]
[1646400625769,0.13945173,41654.0,41637.0,0.006]
[1646400625770,0.06658641,41638.0,41637.0,0.006]
[1646400625969,0.07113105,41630.0,41621.0,0.01]
[1646400626169,0.01465407,41649.0,41622.0,0.01652019]
[1646400626170,0.32340603,41637.0,41622.0,0.01652019]
[1646400626367,0.05,41633.0,41623.0,0.01609303]
[1646400626569,0.05,41633.0,41626.0,0.15]
[1646400626771,0.01838,41633.0,41628.0,0.26501569]
[1646400626965,0.05,41644.0,41629.0,0.0441]
[1646400627165,0.05,41651.0,41629.0,0.0441]
[1646400627166,0.3,41650.0,41629.0,0.1941]
[1646400627365,0.3,41650.0,41636.0,0.23267275]
[1646400627366,0.05,41645.0,41636.0,0.23267275]
[1646400627567,0.05,41645.0,41641.0,0.15]
[1646400627769,0.05,41661.0,41642.0,0.01354137]
[1646400627969,0.05,41661.0,41649.0,0.01431403]
[1646400628205,0.01,41673.0,41650.0,0.0441]
[1646400628407,0.01,41673.0,41659.0,0.23358795]
[1646400628610,0.01,41673.0,41660.0,0.28642468]
[1646400628810,0.01185593,41696.0,41660.0,0.28642468]
[1646400628811,0.001,41695.0,41670.0,0.16653889]
[1646400629007,0.001,41695.0,41672.0,0.15]
[1646400629008,0.05,41689.0,41672.0,0.15]
[1646400629209,0.0011,41697.0,41688.0,0.15]
[1646400629413,0.0011,41697.0,41690.0,0.01260378]
[1646400629608,0.0011,41697.0,41691.0,0.0441]
[1646400629909,0.0011,41697.0,41691.0,0.043]
[1646400630510,0.0011,41697.0,41692.0,0.5517]
[1646400630706,0.0011,41697.0,41693.0,0.1441]
[1646400630909,0.0011,41697.0,41693.0,0.0441]
[1646400631107,0.2107776,41705.0,41693.0,0.0441]
[1646400631108,1.4,41702.0,41693.0,0.0441]
[1646400631506,0.16,41703.0,41694.0,0.3]
[1646400631507,0.01,41703.0,41694.0,0.3]
[1646400631713,0.01,41703.0,41695.0,0.05636646]
[1646400632169,0.01,41703.0,41695.0,0.60806646]
[1646400632372,0.0001,41703.0,41699.0,0.5517]
[1646400632569,0.0001,41703.0,41701.0,0.01594973]
[1646400632769,0.0001,41703.0,41700.0,0.1]
[1646400632970,0.0001,41703.0,41692.0,0.02931]
[1646400632971,0.01096163,41700.0,41696.0,0.007]
[1646400633169,0.01181455,41699.0,41696.0,0.007]
[1646400633370,0.01460604,41698.0,41671.0,0.5517]
[1646400633571,0.01460604,41698.0,41670.0,0.26215371]
[1646400633572,0.08873201,41684.0,41670.0,0.26215371]
[1646400633771,0.27217758,41671.0,41670.0,0.2499]
[1646400633970,0.31227076,41683.0,41670.0,0.2499]
[1646400633971,0.01313387,41682.0,41670.0,0.2499]
[1646400634269,0.01063747,41680.0,41670.0,0.2499]
[1646400634468,0.01219009,41682.0,41670.0,0.2499]
[1646400634672,0.17354128,41681.0,41670.0,0.2499]
[1646400634867,0.17354128,41681.0,41663.0,0.01529366]
[1646400634868,0.05,41681.0,41663.0,0.01529366]
[1646400635070,0.3,41680.0,41663.0,0.01529366]
[1646400635270,0.35,41680.0,41663.0,0.01529366]
[1646400635472,0.02409,41678.0,41652.0,0.0135502]
[1646400635710,0.01042552,41677.0,41652.0,0.0135502]
[1646400635909,0.46062274,41676.0,41654.0,0.30109065]
[1646400636110,0.51062274,41676.0,41654.0,0.30109065]
[1646400636310,0.05,41670.0,41655.0,0.02409]
[1646400636511,0.05,41677.0,41656.0,0.02409]
[1646400636512,0.01259792,41669.0,41656.0,0.02409]
[1646400636712,0.01478991,41668.0,41656.0,0.02409]
[1646400636913,0.01385417,41666.0,41653.0,0.26648474]
[1646400637113,0.01034715,41665.0,41653.0,0.26648474]
[1646400637314,0.32409,41676.0,41653.0,0.26648474]
[1646400637315,0.1838435,41667.0,41654.0,0.02409]
[1646400637511,0.05,41666.0,41655.0,0.02409]
[1646400637711,0.05,41666.0,41653.0,0.01658474]
[1646400637914,0.05,41666.0,41651.0,0.01]
[1646400638413,0.16941772,41658.0,41651.0,0.01]
[1646400638615,0.05,41666.0,41651.0,0.01]
[1646400638915,0.25212272,41652.0,41651.0,0.01]
[1646400639115,0.30212272,41652.0,41651.0,0.01]
[1646400639384,0.05,41652.0,41651.0,0.01]
[1646400639785,0.05,41665.0,41651.0,0.01]
[1646400639990,0.05,41665.0,41651.0,0.02217103]
[1646400640384,0.28365473,41665.0,41651.0,0.02217103]
[1646400640785,0.18518653,41661.0,41657.0,0.2499]
[1646400640985,0.23828034,41662.0,41651.0,0.02217103]
[1646400641291,0.05376491,41656.0,41651.0,0.01]
[1646400641594,0.87558353,41652.0,41651.0,0.01]
[1646400641786,0.32794138,41643.0,41642.0,0.01]
[1646400641987,0.59589439,41643.0,41642.0,0.01]
[1646400642289,0.05,41644.0,41642.0,0.01]
[1646400642494,0.05,41644.0,41643.0,0.78798633]
[1646400642690,0.0941,41657.0,41643.0,0.78798633]
[1646400642691,0.3,41656.0,41643.0,0.78798633]
[1646400642886,0.35,41656.0,41643.0,0.78798633]
[1646400643117,0.28046503,41648.0,41643.0,0.78798633]
[1646400643509,0.20552648,41645.0,41643.0,0.78798633]
[1646400643710,0.00961434,41644.0,41643.0,0.78798633]
[1646400643911,0.00961434,41644.0,41621.0,0.01]
[1646400643912,0.7357,41641.0,41621.0,0.01]
[1646400644114,0.7357,41639.0,41621.0,0.01]
[1646400644312,0.31834271,41625.0,41621.0,0.01]
[1646400644512,0.17334668,41624.0,41621.0,0.01]
[1646400644713,0.367206,41623.0,41621.0,0.01]
[1646400644909,0.22334668,41624.0,41621.0,0.01]
[1646400645115,0.05,41624.0,41621.0,0.01]
[1646400645310,0.39797613,41638.0,41621.0,0.01]
[1646400645311,0.05,41638.0,41622.0,1.4]
[1646400645514,0.1,41647.0,41622.0,1.4]
[1646400645515,0.25463647,41647.0,41631.0,0.01686182]
[1646400645711,0.0441,41652.0,41635.0,0.01410709]
[1646400645909,0.18950791,41656.0,41628.0,0.01259818]
[1646400645910,0.13627874,41656.0,41628.0,0.01259818]
[1646400646113,0.18030222,41645.0,41634.0,0.0126329]
[1646400646512,0.26704493,41636.0,41627.0,0.01372126]
[1646400646710,0.26704493,41636.0,41623.0,0.16260707]
[1646400646964,0.31704493,41636.0,41623.0,0.16260707]
[1646400647160,0.31704493,41636.0,41623.0,0.01260707]
[1646400647360,0.05,41636.0,41623.0,0.01260707]
[1646400647559,0.05,41636.0,41626.0,0.01372126]
[1646400647763,0.34058631,41638.0,41623.0,0.02632833]
[1646400648062,0.18030222,41645.0,41623.0,0.02632833]
[1646400648063,0.18030222,41645.0,41635.0,0.01372126]
[1646400648262,0.18030222,41645.0,41623.0,0.31098009]
[1646400648263,0.18030222,41645.0,41641.0,0.01372126]
[1646400648466,0.18030222,41645.0,41644.0,0.02682048]
[1646400648662,0.18030222,41645.0,41644.0,0.07102753]
[1646400648863,0.05,41657.0,41647.0,0.23693893]
[1646400649064,0.01,41673.0,41656.0,0.17925785]
[1646400649065,0.05,41670.0,41656.0,0.17925785]
[1646400649265,0.01,41673.0,41657.0,0.36073379]
[1646400649463,0.24550931,41665.0,41657.0,0.06073379]
[1646400649664,0.24550931,41665.0,41657.0,0.0441]
[1646400650466,0.24005787,41661.0,41657.0,0.0441]
[1646400650711,0.29550931,41665.0,41657.0,0.0441]
[1646400651414,0.7357,41661.0,41656.0,0.005]
[1646400651610,0.31082345,41664.0,41656.0,0.005]
[1646400651611,0.13627874,41659.0,41656.0,0.005]
[1646400651810,0.01446236,41661.0,41656.0,0.005]
[1646400652010,0.01492504,41660.0,41656.0,0.005]
[1646400652214,0.01485744,41663.0,41656.0,0.005]
[1646400652412,0.05,41671.0,41654.0,0.01628228]
[1646400652413,0.05,41671.0,41660.0,0.01372126]
[1646400652619,0.05,41671.0,41664.0,0.01372126]
[1646400652819,0.01,41673.0,41669.0,0.02713979]
[1646400653014,0.01340858,41682.0,41669.0,0.02713979]
[1646400653015,0.01340858,41682.0,41673.0,1.4]
[1646400653214,0.3,41697.0,41678.0,1.41611827]
[1646400653215,0.01355502,41694.0,41678.0,1.41611827]
[1646400653418,0.01355502,41694.0,41683.0,0.02690906]
[1646400653419,0.001,41694.0,41683.0,0.02690906]
[1646400653618,0.001,41694.0,41684.0,0.0441]
[1646400654113,0.32334835,41687.0,41684.0,0.0441]
[1646400654364,0.001,41694.0,41684.0,0.0441]
[1646400654559,0.001,41694.0,41686.0,0.01372126]
[1646400654758,0.001,41694.0,41687.0,0.0441]
[1646400654959,0.001,41694.0,41683.0,0.06372126]
[1646400654960,0.001,41694.0,41688.0,0.0441]
[1646400655157,0.001,41694.0,41683.0,0.06372126]
[1646400655158,0.001,41694.0,41689.0,0.0441]
[1646400655361,0.23771573,41697.0,41689.0,0.0441]
[1646400655755,0.3021,41698.0,41689.0,0.0441]
[1646400655960,0.3021,41698.0,41692.0,0.01635904]
[1646400655961,0.0021,41698.0,41692.0,0.01635904]
[1646400656158,0.0021,41698.0,41696.0,0.17782484]
[1646400656357,0.0021,41698.0,41697.0,0.05725611]
[1646400656556,0.0021,41698.0,41697.0,0.0441]
[1646400656757,0.28887738,41698.0,41697.0,0.0441]
[1646400657357,0.30296903,41698.0,41697.0,0.0441]
[1646400657558,0.30296903,41698.0,41692.0,0.006]
[1646400657559,1.4,41697.0,41692.0,0.006]
[1646400657762,1.4,41697.0,41695.0,0.0441]
[1646400657967,0.3,41696.0,41695.0,0.0441]
[1646400658209,0.0021,41698.0,41695.0,0.0441]
[1646400659413,0.3011,41708.0,41696.0,1.4]
[1646400659614,0.0011,41708.0,41702.0,0.01372126]
[1646400659813,0.0011,41708.0,41704.0,0.01554194]
[1646400660014,0.0011,41713.0,41706.0,0.01372126]
[1646400660222,0.0011,41713.0,41712.0,0.01372126]
[1646400660417,0.0011,41713.0,41712.0,0.05782126]
[1646400660812,0.0011,41717.0,41712.0,0.05782126]
[1646400661018,0.0011,41717.0,41712.0,0.12190126]
[1646400661215,0.15447392,41716.0,41712.0,0.12190126]
[1646400661414,0.15447392,41716.0,41697.0,0.15]
[1646400661614,0.25661517,41709.0,41702.0,0.0441]
[1646400661857,0.0011,41717.0,41702.0,0.0441]
[1646400661858,0.0011,41717.0,41702.0,0.3441]
[1646400662059,0.0011,41717.0,41702.0,0.4941]
[1646400662357,0.0011,41717.0,41702.0,0.1941]
[1646400662857,0.0011,41717.0,41709.0,0.21941791]
[1646400663057,0.0011,41717.0,41710.0,0.1941]
[1646400663267,0.0001,41717.0,41712.0,1.4]
[1646400663461,0.0001,41717.0,41713.0,0.0441]
[1646400663658,0.0001,41717.0,41714.0,0.0441]
[1646400663859,0.0001,41717.0,41715.0,0.0441]
[1646400664461,1.4,41715.0,41700.0,0.18356168]
[1646400664658,1.4,41715.0,41688.0,2.48895262]
[1646400664659,1.55,41715.0,41708.0,0.0441]
[1646400664859,0.05,41714.0,41705.0,0.0441]
[1646400665058,0.21108424,41706.0,41705.0,0.0441]
[1646400665259,0.0001,41717.0,41705.0,0.0441]
[1646400665461,0.0001,41717.0,41707.0,0.15]
[1646400665713,0.0001,41717.0,41708.0,0.0441]
[1646400665917,0.0001,41717.0,41710.0,0.15]
[1646400666114,4e-05,41717.0,41711.0,0.0441]
[1646400667515,0.0021,41730.0,41712.0,1.64302243]
[1646400667717,0.0021,41730.0,41713.0,0.4441]
[1646400667915,0.0021,41730.0,41713.0,0.62769457]
[1646400668114,0.0021,41730.0,41716.0,0.15]
[1646400668315,0.02235607,41729.0,41727.0,0.32843824]
[1646400668520,0.05,41736.0,41728.0,1.4441]
[1646400668718,0.01520703,41742.0,41729.0,0.3]
[1646400668917,0.0022,41742.0,41730.0,0.0441]
[1646400669364,0.04794898,41734.0,41730.0,0.0441]
[1646400669568,0.01329845,41736.0,41730.0,0.0441]
[1646400669763,0.23060194,41733.0,41730.0,0.0441]
[1646400669963,0.19274199,41737.0,41730.0,0.0441]
[1646400670164,0.01157964,41731.0,41730.0,0.0441]
[1646400670365,0.01157964,41731.0,41722.0,0.1]
[1646400670366,0.04796451,41731.0,41720.0,0.18355156]
[1646400670569,0.45,41732.0,41718.0,0.0441]
[1646400670570,0.20513135,41729.0,41718.0,0.0441]
[1646400670866,0.27531727,41725.0,41718.0,0.0441]
[1646400671167,0.01340089,41723.0,41718.0,0.0441]
[1646400671366,0.0128984,41722.0,41718.0,0.0441]
[1646400671567,0.01328019,41721.0,41718.0,0.0441]
[1646400671765,0.15,41735.0,41718.0,0.0441]
[1646400671766,0.01219997,41720.0,41718.0,0.0441]
[1646400672068,1.4,41718.0,41706.0,0.18357891]
[1646400672269,0.02409,41711.0,41694.0,0.23730474]
[1646400672467,0.01387738,41710.0,41695.0,0.157114]
[1646400672669,2.97783606,41742.0,41695.0,0.181204]
[1646400672670,0.01399942,41709.0,41695.0,0.181204]
[1646400672868,0.3,41724.0,41700.0,0.01575858]
[1646400672869,0.01009111,41708.0,41700.0,0.01575858]
[1646400673117,0.15,41734.0,41708.0,0.00820989]
[1646400673312,0.02409,41733.0,41710.0,0.01613835]
[1646400673513,0.20645963,41717.0,41708.0,0.40820989]
[1646400673718,0.31682349,41713.0,41708.0,0.00820989]